Cogmind - Beta 13 @@@ ROGUE MODE // 2024.04.16 @ 01:17:12 Player: desiring-machine Result: Destroyed by S-27 Virus with Autogun Performance ------------- Evolutions (6) 3000 Regions Visited (7) 1400 Robots Destroyed (25) 125 Value Destroyed (492) 492 Prototype IDs (0) 0 Alien Tech Used (0) 0 Bonus (0) 0 TOTAL SCORE: 5017 Bonus ------- None Cogmind --------- Core Integrity 0/1150 Matter 270/300 Energy 150/150 System Corruption 8% Temperature Cool (0) Movement Core (100) Ox1 Location -4/Factory Parts ------- > --- POWER (2) -------- Micro Nuclear Core > --- PROPULSION (7) --- (None) > --- UTILITY (6) ------ Terrain Scan Processor Improved Terrain Scan Processor Hacking Suite > --- WEAPON (4) ------- (None) > --- INVENTORY (5) ---- Micro Nuclear Core Peak State ------------ > --- POWER ------------ Micro Nuclear Core > --- PROPULSION ------- Flight Unit Flight Unit Flight Unit Nuclear Pulse Thruster Nuclear Pulse Thruster Nuclear Pulse Array > --- UTILITY ---------- Coolant Injector Small Storage Unit Terrain Scan Processor Improved Terrain Scan Processor Hacking Suite Drone Bay > --- WEAPON ----------- Particle Gun Disruptor Cannon Phase Cannon > --- INVENTORY -------- Micro Nuclear Core Micro Nuclear Core Micro Nuclear Core Matter Filter Matter Filter Grenade Launcher Heavy Rocket Launcher [Rating: 62] Favorites ----------- Power Light Ion Engine Engine Light Ion Engine Power Core Nuclear Core Propulsion Flight Unit Treads Improved Treads Wheel Wheel Hover Unit Improved Gravmag System Flight Unit Flight Unit Utility Small Storage Unit Device Coolant Injector Storage Small Storage Unit Processor Terrain Scan Processor Hackware Hacking Suite Weapon Particle Gun Energy Gun Particle Gun Energy Cannon Phase Cannon Ballistic Gun Light Assault Rifle Launcher Grenade Launcher Build | -11 -10 -9 -8 -7 -6 -5 -4 ------- Run | Yrd Mat Mat Mat Fac Fac Fac Fac Slots Evolved 12 | . . 2 2 2 2 2 2 Power 1 | . . . . 1 . . . Propulsion 5 | . . 2 1 1 . 1 . Utility 4 | . . . 1 . 2 . 1 Weapon 2 | . . . . . . 1 1 Parts Attached 44 | 6 3 9 2 2 3 4 15 Power 7 | 1 . 1 . 1 1 . 3 Engine 3 | 1 . 1 . 1 . . . Core 4 | . . . . . 1 . 3 Reactor . | . . . . . . . . Propulsion 14 | 2 . 5 1 1 . 2 3 Treads 1 | . . 1 . . . . . Leg . | . . . . . . . . Wheel 2 | 2 . . . . . . . Hover 1 | . . . . . . . 1 Flight 10 | . . 4 1 1 . 2 2 Utility 9 | 1 1 . . . 2 1 4 Device 5 | . . . . . 1 1 3 Storage 1 | 1 . . . . . . . Processor 2 | . 1 . . . . . 1 Hackware 1 | . . . . . 1 . . Protection . | . . . . . . . . Artifact . | . . . . . . . . Weapon 14 | 2 2 3 1 . . 1 5 Energy Gun 3 | 1 1 . 1 . . . . Energy Cannon 4 | . . . . . . 1 3 Ballistic Gun 3 | 1 . 2 . . . . . Ballistic Cannon . | . . . . . . . . Launcher 4 | . 1 1 . . . . 2 Special Weapon . | . . . . . . . . Impact Weapon . | . . . . . . . . Slashing Weapon . | . . . . . . . . Piercing Weapon . | . . . . . . . . Special Melee Weapon . | . . . . . . . . Unidentified Prototypes . | . . . . . . . . Parts Lost 20 | . . 3 . . . 1 16 Power 3 | . . . . . . . 3 Propulsion 10 | . . 2 . . . 1 7 Utility 4 | . . . . . . . 4 Weapon 3 | . . 1 . . . . 2 Highest Loss Streak 14 | . . 2 . . . 1 14 To Critical Strikes . | . . . . . . . . Average Slot Usage (%) 78 | . 92 79 90 92 86 82 57 Engine 7 | . 14 11 9 15 8 5 1 Core 2 | . . . . . 3 5 3 Wheel 5 | . 28 7 . . . . . Flight 24 | . . 12 45 46 40 40 18 Device 2 | . . . . . 2 1 6 Storage 7 | . 14 11 9 7 6 5 4 Processor 8 | . 7 11 9 7 6 5 9 Hackware 2 | . . . . . 5 5 5 Energy Gun 6 | . 14 5 8 7 6 5 3 Energy Cannon 1 | . . . . . . 4 3 Ballistic Gun 2 | . 8 9 1 . . . . Launcher 4 | . 6 7 9 7 3 . . Naked Turns . | . . . . . . . . Heaviest Build 37 | 12 16 16 14 17 22 27 37 Greatest Support 37 | 20 20 23 20 24 24 32 37 Greatest Overweight (x) 6 | 3 . 3 . . . . 6 Average Overweight (x) . | . . . . . . . . Largest Inventory Capacity 8 | 8 8 8 8 8 8 8 8 Average Capacity 7 | 7 8 8 8 8 8 8 7 Most Carried 8 | 5 6 8 8 7 8 8 8 Average Carried 6 | 2 3 5 7 6 7 7 6 Final Capacity 8 | 8 8 8 8 8 8 8 5 Final Carried 8 | 2 6 7 7 7 8 7 1 Class Distribution -------------------- 48% | Scavenger-Sprinter 40% | Mutant 6% | Sprinter 4% | Gunner Dominant Class ---------------- Mutant | -10/Materials Mutant | -9/Materials Scavenger-Sprinter | -8/Materials Scavenger-Sprinter | -7/Factory Scavenger-Sprinter | -6/Factory Scavenger-Sprinter | -5/Factory Mutant | -4/Factory Resources | -11 -10 -9 -8 -7 -6 -5 -4 ----------- Run | Yrd Mat Mat Mat Fac Fac Fac Fac Matter Collected 812 | 260 21 89 . . 52 170 220 Remotely . | . . . . . . . . Salvage Created 886 | . 47 156 . . 52 170 461 Parts 51 | . . 17 . . 6 9 19 Haulers Intercepted 1 | . . . . . . . 1 Recyclers Shooed 4 | . . 1 . . 1 1 1 Parts Field Recycled . | . . . . . . . . Retrieved Matter . | . . . . . . . . Parts Self-Destructed . | . . . . . . . . Prevented . | . . . . . . . . Kills | -11 -10 -9 -8 -7 -6 -5 -4 ------- Run | Yrd Mat Mat Mat Fac Fac Fac Fac Combat Hostiles Destroyed 12 | . 2 6 . . . . 4 Guns 5 | . . 5 . . . . . Cannons 2 | . . . . . . . 2 AOE 5 | . 2 1 . . . . 2 Classes Destroyed 9 | . 1 4 . . 1 2 1 Worker 2 | . . 1 . . . . 1 Builder 3 | . . . . . 2 1 . Tunneler 2 | . . . . . . 1 1 Hauler 1 | . . . . . . . 1 Recycler 3 | . . . . . . 1 2 Watcher 2 | . . 1 . . 1 . . Swarmer 6 | . . 4 . . . . 2 Grunt 5 | . 2 1 . . . . 2 Sentry 1 | . . 1 . . . . . Best Kill Streak 7 | . 2 7 . . 2 2 5 Combat Bots Only 5 | . 2 5 . . . . 2 Max Kills in Single Turn 2 | . 1 1 . . 1 1 2 Gunslinging . | . . . . . . . . Exploded 1 | . 1 1 . . . . 1 Melee . | . . . . . . . . Uniques/NPCs Destroyed . | . . . . . . . . Combat | -11 -10 -9 -8 -7 -6 -5 -4 -------- Run | Yrd Mat Mat Mat Fac Fac Fac Fac Hostile Shots Fired 321 | . 7 36 2 3 . 3 270 Missed 151 | . 3 13 2 1 . . 132 Damage Taken 2866 | . 103 232 . 28 8 60 2435 Core 1205 | . 12 36 . . . . 1157 Absorbed by Shields 3 | . . . . . 3 . . Core Remaining (%) 98 | 100 95 91 100 100 100 100 . Volleys Fired 69 | . 3 20 . . 22 5 19 Largest 2 | . 2 2 . . 2 2 2 Hottest 150 | . 75 75 . . 95 150 150 Shots Fired 95 | . 4 35 . . 23 10 23 Gun 61 | . 1 28 . . 22 5 5 Cannon 17 | . . . . . . 5 12 Launcher 17 | . 3 7 . . 1 . 6 Special . | . . . . . . . . Kinetic 23 | . . 23 . . . . . Thermal 47 | . . . . . 22 10 15 Explosive 17 | . 3 7 . . 1 . 6 Electromagnetic 8 | . 1 5 . . . . 2 Robot Hit Streak 15 | . 1 5 . . 3 9 15 Robot Miss Streak 5 | . 2 5 . . 4 . 2 Penetration Max . | . . . . . . . . Secondary Targets 2 | . . 2 . . . . . Max Gunslinging Chain 1 | . . 1 . . . . . Shots Hit Robots 60 | . 2 20 . . 12 8 18 Core Hits 49 | . 4 14 . . 7 3 21 Critical Kills 1 | . . . . . . . 1 Critical Parts Destroyed . | . . . . . . . . Critical Strikes 3 | . . . . . 2 . 1 Burn 2 | . . . . . 2 . . Meltdown 1 | . . . . . . . 1 Melee Attacks . | . . . . . . . . Impact . | . . . . . . . . Slashing . | . . . . . . . . Piercing . | . . . . . . . . Sneak Attacks . | . . . . . . . . Combat Hostiles . | . . . . . . . . Follow-up Attacks . | . . . . . . . . Damage Inflicted 1755 | . 110 313 . . 260 180 892 Guns 581 | . 11 177 . . 231 86 76 Cannons 441 | . . . . . . 94 347 Explosions 733 | . 99 136 . . 29 . 469 Melee . | . . . . . . . . Ramming . | . . . . . . . . Kinetic 130 | . . 130 . . . . . Thermal 794 | . . . . . 231 180 383 Explosive 733 | . 99 136 . . 29 . 469 Electromagnetic 98 | . 11 47 . . . . 40 Impact . | . . . . . . . . Slashing . | . . . . . . . . Piercing . | . . . . . . . . Highest Corruption 8 | . 4 . . . . . 8 Average Corruption 4 | . 3 . . . . . 4 Corruption Purged . | . . . . . . . . Corruption Blocked . | . . . . . . . . Effects 6 | . 3 . . . . . 3 Message Errors 1 | . 1 . . . . . . Matter Fused 1 | . 1 . . . . . . Parts Rejected 1 | . . . . . . . 1 Data Loss (minor) 1 | . 1 . . . . . . Alerts 1 | . . . . . . . 1 Weapon Failures 1 | . . . . . . . 1 Overload Shots . | . . . . . . . . Overflow Damage 21 | . . . . . . 21 . Projectiles 21 | . . . . . . 21 . Explosions . | . . . . . . . . Melee . | . . . . . . . . Knockbacks . | . . . . . . . . Impact . | . . . . . . . . Kinetic . | . . . . . . . . Secondary . | . . . . . . . . Self-Inflicted Damage 35 | . 24 . . . 11 . . Shots 2 | . 1 . . . 1 . . Rammed . | . . . . . . . . Targets Rammed . | . . . . . . . . Kicked . | . . . . . . . . Crushed . | . . . . . . . . Highest Temperature 400 | . 15 81 4 180 400 318 183 Average Temperature 125 | . 7 52 4 91 153 175 88 Received Heat Transfer 219 | . 24 51 . . . 45 99 Effects 7 | . . . . . 4 3 . Shutdowns 2 | . . . . . 2 . . Energy Bleed 3 | . . . . . 1 2 . Matter Decay 1 | . . . . . . 1 . Damage (minor) 1 | . . . . . 1 . . Siege Activations . | . . . . . . . . Robots Corrupted . | . . . . . . . . Combat Hostiles . | . . . . . . . . Parts Fried 2 | . . . . . . . 2 Impact Corruptions . | . . . . . . . . Robots Melted 1 | . . . . . . . 1 Combat Hostiles . | . . . . . . . . Parts Melted 5 | . . . . . 2 1 2 Heat Transferred 1517 | . . . . . 666 296 555 Parts Sabotaged . | . . . . . . . . Parts Stolen . | . . . . . . . . Parts Stripped . | . . . . . . . . Power Chain Reactions . | . . . . . . . . Alert | -11 -10 -9 -8 -7 -6 -5 -4 ------- Run | Yrd Mat Mat Mat Fac Fac Fac Fac Peak Influence 375 | . 88 224 169 136 121 112 375 Initial 94 | . . 37 94 76 66 58 54 Average 127 | . 18 154 142 97 88 77 223 Maximum Alert Level 1 | . . 1 . . . . 1 Low Security (%) 75 | 100 100 57 100 100 100 100 37 Level 1 24 | . . 42 . . . . 62 Level 2 . | . . . . . . . . Level 3 . | . . . . . . . . Level 4 . | . . . . . . . . Level 5 . | . . . . . . . . High Security . | . . . . . . . . Max Security . | . . . . . . . . Squads Dispatched 7 | . 1 . 2 . . . 4 Investigation 2 | . . . . . . . 2 Extermination . | . . . . . . . . Reinforcement 5 | . 1 . 2 . . . 2 Assault . | . . . . . . . . Garrison . | . . . . . . . . Intercept . | . . . . . . . . Searches Triggered . | . . . . . . . . Construction Impeded . | . . . . . . . . Haulers Reinforced 2 | . . . . . . . 2 Active Scanning Responses . | . . . . . . . . Cargo Convoy Interrupts . | . . . . . . . . Stealth | -11 -10 -9 -8 -7 -6 -5 -4 --------- Run | Yrd Mat Mat Mat Fac Fac Fac Fac Distress Signals 4 | . . 1 1 . 1 . 1 Communications Jammed . | . . . . . . . . Distress Signals . | . . . . . . . . Times Spotted 72 | . 3 7 6 4 6 8 38 Peak Tracking Total 15 | . 2 5 4 4 5 7 15 Tactical Retreats 8 | . . . . 1 . . 7 Traps | -11 -10 -9 -8 -7 -6 -5 -4 ------- Run | Yrd Mat Mat Mat Fac Fac Fac Fac Traps Triggered 4 | . 3 . . . 1 . . Indirectly . | . . . . . . . . Trap Hack Attempts . | . . . . . . . . Triggered . | . . . . . . . . Disarmed . | . . . . . . . . Reprogrammed . | . . . . . . . . Reused . | . . . . . . . . Traps Extracted . | . . . . . . . . Installed . | . . . . . . . . Triggered . | . . . . . . . . Machines | -11 -10 -9 -8 -7 -6 -5 -4 ---------- Run | Yrd Mat Mat Mat Fac Fac Fac Fac Machines Disabled . | . . . . . . . . Max in Single Turn . | . . . . . . . . Machines Repaired . | . . . . . . . . Machines Dismantled . | . . . . . . . . Machines Sabotaged . | . . . . . . . . Overloaded Fab Kills . | . . . . . . . . Hacking | -11 -10 -9 -8 -7 -6 -5 -4 --------- Run | Yrd Mat Mat Mat Fac Fac Fac Fac Machines Accessed 4 | . . . . . . 1 3 Terminals 4 | . . . . . . 1 3 Fabricators . | . . . . . . . . Repair Stations . | . . . . . . . . Recycling Units . | . . . . . . . . Scanalyzers . | . . . . . . . . Garrison Access . | . . . . . . . . Total Hacks 7 | . . . . . . 2 5 Successful 3 | . . . . . . 2 1 Failed 4 | . . . . . . . 4 Catastrophic 1 | . . . . . . . 1 Database Lockouts . | . . . . . . . . Manual . | . . . . . . . . Terminals 7 | . . . . . . 2 5 Fabricators . | . . . . . . . . Repair Stations . | . . . . . . . . Recycling Units . | . . . . . . . . Scanalyzers . | . . . . . . . . Garrison Access . | . . . . . . . . Terminal Hacks 3 | . . . . . . 2 1 Record 2 | . . . . . . 2 . Open DSF 1 | . . . . . . . 1 Fabricator Hacks . | . . . . . . . . Repair Station Hacks . | . . . . . . . . Recycling Unit Hacks . | . . . . . . . . Scanalyzer . | . . . . . . . . Garrison Access Hacks . | . . . . . . . . Unauthorized Hacks . | . . . . . . . . Terminals . | . . . . . . . . Fabricators . | . . . . . . . . Repair Stations . | . . . . . . . . Recycling Units . | . . . . . . . . Scanalyzers . | . . . . . . . . Garrison Access . | . . . . . . . . Data Cores Recovered . | . . . . . . . . Used . | . . . . . . . . Hacking Detections 3 | . . . . . . . 3 Full Trace Events 1 | . . . . . . . 1 Feedback Events . | . . . . . . . . Feedback Blocked . | . . . . . . . . Robot Schematics Acquired . | . . . . . . . . Robots Built . | . . . . . . . . Authchips . | . . . . . . . . Time . | . . . . . . . . Total Robot Build Rating . | . . . . . . . . Part Schematics Acquired . | . . . . . . . . Parts Built . | . . . . . . . . Authchips . | . . . . . . . . Time . | . . . . . . . . Total Part Build Rating . | . . . . . . . . Parts Repaired . | . . . . . . . . Time . | . . . . . . . . Parts Recycled . | . . . . . . . . Recycled Matter . | . . . . . . . . Retrieved Matter . | . . . . . . . . Retrieved Components . | . . . . . . . . Parts Scanalyzed . | . . . . . . . . Part Schematics Acquired . | . . . . . . . . Parts Damaged . | . . . . . . . . Bothacking | -11 -10 -9 -8 -7 -6 -5 -4 ------------ Run | Yrd Mat Mat Mat Fac Fac Fac Fac Used RIF Installer . | . . . . . . . . Robots Hacked . | . . . . . . . . Non-combat . | . . . . . . . . Combat . | . . . . . . . . Robot Hacks Applied . | . . . . . . . . Relay Couplers Released . | . . . . . . . . Fabnet Peak Effective % . | . . . . . . . . Robots Rewired . | . . . . . . . . Allies Hacked . | . . . . . . . . Hacks Repelled . | . . . . . . . . Allies | -11 -10 -9 -8 -7 -6 -5 -4 -------- Run | Yrd Mat Mat Mat Fac Fac Fac Fac Total Allies . | . . . . . . . . Largest Group . | . . . . . . . . Highest-Rated Group . | . . . . . . . . Highest-Rated Ally . | . . . . . . . . Total Orders . | . . . . . . . . Ally Attacks . | . . . . . . . . Total Damage . | . . . . . . . . Kills . | . . . . . . . . Allies Corrupted . | . . . . . . . . Allies Melted . | . . . . . . . . Intel | -11 -10 -9 -8 -7 -6 -5 -4 ------- Run | Yrd Mat Mat Mat Fac Fac Fac Fac Robot Analysis Total . | . . . . . . . . Derelict Logs Recovered . | . . . . . . . . Drone Launches 6 | . . . . . . . 6 Drone Recoveries . | . . . . . . . . Exploration | -11 -10 -9 -8 -7 -6 -5 -4 ------------- Run | Yrd Mat Mat Mat Fac Fac Fac Fac Turns Passed 1167 | 52 139 220 88 42 230 94 302 Spaces Moved 1952 | 37 144 205 290 149 259 259 609 Core 51 | 16 . . . . . . 35 Treads 32 | . . 32 . . . . . Legs . | . . . . . . . . Wheels 213 | 21 144 48 . . . . . Hover 48 | . . . . . . . 48 Flight 1608 | . . 125 290 149 259 259 526 Fastest Speed 22 | 50 80 31 28 25 25 22 25 Average Speed 38 | 103 80 66 28 25 25 22 36 Slowest Speed 350 | 200 80 300 28 25 25 25 350 Overloaded Moves . | . . . . . . . . Propulsion Burnouts . | . . . . . . . . Robots Hopped 22 | . . 6 6 1 3 . 6 Cave-ins Triggered . | . . . . . . . . Exploration Rate (%) 18 | 4 26 33 34 9 11 7 21 Regions Visited 7 Branch Regions . Pre-discovered Areas . | . . . . . . . . Known Exits Taken . | . . . . . . . . Unknown Exits Taken 7 | 1 1 1 1 1 1 1 . Scrap Searched . | . . . . . . . . Spaces Dug . | . . . . . . . . Terrain Destroyed 89 | . 26 33 . . 7 2 21 Melee . | . . . . . . . . Projectile 2 | . . . . . . 2 . AOE 87 | . 26 33 . . 7 . 21 Terrain Rammed . | . . . . . . . . Walls Destroyed . | . . . . . . . . Machines Disabled . | . . . . . . . . Actions | -11 -10 -9 -8 -7 -6 -5 -4 --------- Run | Yrd Mat Mat Mat Fac Fac Fac Fac Total 2255 | 50 163 250 290 151 399 286 666 Wait 118 | . 5 9 . . 92 7 5 Move 1903 | 36 143 192 277 146 252 258 599 Hop 20 | . . 6 6 1 3 . 4 Pick Up 52 | 8 7 10 3 2 4 7 11 Fast Attach . | . . . . . . . . Attach 34 | 6 1 6 1 2 2 3 13 Detach 7 | . . . . . 2 . 5 Swap 10 | . 2 3 1 . 1 1 2 Drop 24 | . 2 4 2 . 3 5 8 Fire 69 | . 3 20 . . 22 5 19 Melee . | . . . . . . . . Ram . | . . . . . . . . Kick . | . . . . . . . . Crush . | . . . . . . . . Escape Stasis 18 | . . . . . 18 . . Rewire . | . . . . . . . . Trap . | . . . . . . . . Miscellaneous . | . . . . . . . . Route ------- -11/Scrapyard -10/Materials -9/Materials -8/Materials -7/Factory -6/Factory -5/Factory -4/Factory (discovered 1 exit: [*Res]) History --------- Turn | Location | Event 13 | -11/Scrapyard | Discovered new exit (range 15) 53 | -11/Scrapyard | Entered Materials 147 | -10/Materials | Discovered new exit (range 9) 192 | -10/Materials | Entered another Materials area 192 | -9/Materials | Evolved 2 slots: Propulsion x2 327 | -9/Materials | Build established: Mutant 410 | -9/Materials | Discovered new exit (range 4) 412 | -9/Materials | Entered another Materials area 412 | -8/Materials | Evolved 2 slots: Propulsion x1, Utility x1 499 | -8/Materials | Discovered new exit (range 4) 500 | -8/Materials | Entered Factory 500 | -7/Factory | Evolved 2 slots: Power x1, Propulsion x1 540 | -7/Factory | Discovered new exit (range 5) 542 | -7/Factory | Entered another Factory area 542 | -6/Factory | Evolved 2 slots: Utility x2 637 | -6/Factory | Spotted B-75 Beast 652 | -6/Factory | Build established: Scavenger-Sprinter 688 | -6/Factory | Discovered new exit (range 16) 772 | -6/Factory | Entered another Factory area 772 | -5/Factory | Evolved 2 slots: Propulsion x1, Weapon x1 837 | -5/Factory | Discovered new exit (range 4) 866 | -5/Factory | Entered another Factory area 866 | -4/Factory | Evolved 2 slots: Utility x1, Weapon x1 1057 | -4/Factory | Spotted B-86 Titan 1090 | -4/Factory | Lost 4 allies 1117 | -4/Factory | Core integrity fell below 50% 1151 | -4/Factory | Core integrity fell below 20% 1158 | -4/Factory | Discovered new exit (range 15) 1161 | -4/Factory | Lost 14 parts (2p6n4u2w) 1168 | -4/Factory | Destroyed by S-27 Virus with Autogun Last Messages --------------- 01125_ Phase Cannon destroyed. 01126_ Acquired VTOL Module. 01127_ Coolant Injector destroyed. 01128_ R-10 Processor collects Grenade Launcher. 01128_ R-10 Processor collects Autogun. 01130_ Slug penetrates Fusion Modulator. 01130_ Penetrated by Slug. 01130_ VTOL Module destroyed. 01135_ Acquired Imp. Gravmag System. 01137_ P-70 Sage resets H-77 Assassin, system corruption cleaned. 01141_ Slug penetrates Nuclear Reactor. 01142_ Door malfunctions. 01149_ Penetrated by Slug. 01155_ Slug penetrates Wall. 01155_ Penetrated by Slug. 01158_ EXIT=FOUND 01160_ System corrupted: IFF burst signal emitted. 01167_ Imp. Gravmag System destroyed. Map ----- +----------------------------------------------------+ | ????????????????????????????# """ """ """ =][ "" | | ????????????????????????????# """ """ """ %* "" | | ????????????????????????????# ## | | ????????????????????????????+ #? | | ????????????????????????????# #? | | ????????????????????????????# ###/##### | | ?????????????????????######## #? | | ?????????????????????# #? """ | | ?????????????????????# # """ | | ???????????????? # " """ | | ???????????????? / # | | ?????????????????????# # | | ?????????????????????# ###"########### " F" | | ?????????????????????# # ## """" | | ?????????????????????# # ## ?? | | ?????????????????????# # ########?? | | ?????????????????????# # #????????? | | ?????????????????????# # #????????? | | ?????????????????????# # #????????? | | ?????????????????????# # #????????? | | ?????????????????????# ###########;##########? | | ?????????????????????#w s +? | | ?????????????????????# ss p #? | | ?????????????????????# s ss +? | | ?????????????????????+ #? | | ?????????????????????# <@ #? | | ?????????????????????# ##########+####### #? | | ?????????????????????# #?????????????????? #? | | ?????????????????????#######??????????????????? +? | | ????????????????????????????????????????????????#? | | ?????????????????????????????????????????????????? | | ?????????????????????????????????????????????????? | | ?????????????????????????????????????????????????? | | ?????????????????????????????????????????????????? | | ?????????????????????????????????????????????????? | | ?????????????????????????????????????????????????? | | ?????????????????????????????????????????????????? | | ?????????????????????????????????????????????????? | | ?????????????????????????????????????????????????? | | ?????????????????????????????????????????????????? | | ?????????????????????????????????????????????????? | | ?????????????????????????????????????????????????? | | ?????????????????????????????????????????????????? | | ?????????????????????????????????????????????????? | | ?????????????????????????????????????????????????? | | ?????????????????????????????????????????????????? | | ?????????????????????????????????????????????????? | | ?????????????????????????????????????????????????? | | | | | +----------------------------------------------------+ Best States ------------- Heat Dissipation 43 Coolant Potential 65 Energy Generation 20 Energy Capacity 265 Matter Stores 300 Matter Capacity 300 Sight Range 16 Terrain Scan Density 185 Evasion (%) 65 Recoil Reduction 1 Offensive Hacking 10 Item Schematics ----------------- None Robot Schematics ------------------ None Fabricated ------------ Nothing Alien Tech Used ----------------- None Achievements -------------- None Challenges ------------ None Game ------ Seed ActiveBiocellCloak Manual? 0 Play Time 00:32:27 Cumulative 11.8 hours Start 2024.04.12 @ 03:14:16 End 2024.04.16 @ 01:17:12 Sessions 3 Manual Loads 0 Difficulty Rogue Special Mode None Game No. 18 Rogue 18 Adventurer 0 Explorer 0 Win Type - Total 0 Types 0/0/0/0/0/0/0/0/0 Lore% 10 Gallery% 22 Achievement% 17 Wizard Run 0 Options --------- Layout 1 ASCII 0 Keyboard 0 Movement Numpad Keybinds 0 Fullscreen 1 Font 24/Smallcaps Map View 50x35 Zoom Use 0% Tactical HUD 1 Map Filters NONE Filters NONE Steam 0 RUN: d6ad8264-61ae-42bf-9a24-b10e49ca33f2